fUSD/lending_fUSD_20250216
["ID","MTS","AMOUNT","RATE_DAILY","PERIOD"]
[353297664,1739742665929,-846.39,0.00011287,2]
[353297665,1739742665939,-500.0,0.00011287,2]
[353297666,1739742665949,-1249.29,0.00011287,2]
[353297667,1739742665958,-500.0,0.00011287,2]
[353297668,1739742665968,-1062.89,0.00011287,2]
[353297669,1739742665978,-500.0,0.00011287,2]
[353297670,1739742665989,-500.0,0.00011287,2]
[353297671,1739742665998,-2010.66,0.00011287,2]
[353297672,1739742666008,-1292.55,0.00011287,2]
[353297673,1739742666017,-500.0,0.00011287,2]
[353297674,1739742666026,-1786.66,0.00011287,2]
[353297675,1739742666036,-500.0,0.00011287,2]
[353297676,1739742666045,-718.28,0.00011287,2]
[353297677,1739742666055,-500.0,0.00011287,2]
[353297678,1739742666065,-500.0,0.00011287,2]
[353297679,1739742666075,-512.94134718,0.00011287,2]
[353297680,1739742666086,-505.9,0.00011287,2]
[353297681,1739742666100,-500.0,0.00011287,2]
[353297682,1739742666109,-2309.43,0.00011287,2]
[353297683,1739742666119,-500.0,0.00011287,2]
[353297684,1739742666129,-500.0,0.00011287,2]
[353297685,1739742666139,-841.82,0.00011287,2]
[353297686,1739742666149,-500.0,0.00011287,2]
[353297687,1739742666158,-1004.9,0.00011287,2]
[353297688,1739742666169,-500.0,0.00011287,2]
[353297689,1739742666178,-1051.25,0.00011287,2]
[353297690,1739742666187,-500.0,0.00011287,2]
[353297691,1739742666197,-641.36299018,0.00011287,2]
[353297692,1739742666206,-1465.9,0.00011287,2]
[353297693,1739742666215,-500.0,0.00011287,2]
[353297694,1739742666224,-1681.66,0.00011287,2]
[353297695,1739742666233,-500.0,0.00011287,2]
[353297696,1739742666243,-918.07,0.00011287,2]
[353297697,1739742666253,-1609.77,0.00011287,2]
[353297698,1739742666263,-500.0,0.00011287,2]
[353297699,1739742666272,-438.09025724,0.00011287,2]
[353297700,1739742666282,-1735.61,0.00011287,2]
[353297701,1739742666291,-500.0,0.00011287,2]
[353297702,1739742666300,-500.0,0.00011287,2]
[353297703,1739742666309,-2197.25,0.00011287,2]
[353297704,1739742666318,-500.0,0.00011287,2]
[353297705,1739742666328,-513.81,0.00011287,2]
[353297706,1739742666339,-500.0,0.00011287,2]
[353297707,1739742666348,-500.0,0.00011287,2]
[353297708,1739742666358,-500.0,0.00011287,2]
[353297709,1739742666368,-795.13,0.00011287,2]
[353297710,1739742666377,-685.8,0.00011287,2]
[353297711,1739742666387,-1539.81,0.00011287,2]
[353297712,1739742666398,-4849.07,0.00011287,2]
[353297713,1739742666407,-500.0,0.00011287,2]
[353297714,1739742666417,-153.16,0.00011287,2]
[353297715,1739742666427,-500.0,0.00011287,2]
[353297716,1739742666437,-500.0,0.00011287,2]
[353297717,1739742666449,-500.0,0.00011287,2]
[353297718,1739742666459,-500.0,0.00011287,2]
[353297719,1739742666468,-418.26,0.00011287,2]
[353297720,1739742666477,-500.0,0.00011287,2]
[353297721,1739742666486,-500.0,0.00011287,2]
[353297722,1739742666496,-500.0,0.00011287,2]
[353297723,1739742666507,-1017.77578108,0.00011315,2]
[353297724,1739742666518,-301.11,0.00011354,2]
[353297725,1739742666527,-1471.49,0.00011368,2]
[353297726,1739742666536,-922.85,0.00011368,2]
[353297727,1739742666546,-1666.95,0.00011368,2]
[353297728,1739742666555,-500.0,0.00011368,2]
[353297729,1739742666565,-1208.65,0.00011368,2]
[353297730,1739742666575,-1605.62,0.00011368,2]
[353297731,1739742666586,-2077.86,0.00011368,2]
[353297732,1739742666596,-1142.3,0.00011368,2]
[353297733,1739742666605,-1876.41,0.00011368,2]
[353297734,1739742666616,-553.47,0.00011368,2]
[353297735,1739742666625,-1626.88,0.00011368,2]
[353297736,1739742666635,-1146.64,0.00011368,2]
[353297737,1739742666644,-151.0,0.00011369,2]
[353297738,1739742666654,-151.0,0.00011369,2]
[353297739,1739742666663,-151.0,0.00011369,2]
[353297740,1739742666673,-500.0,0.00011369,2]
[353297741,1739742666683,-500.0,0.00011369,2]
[353297742,1739742666692,-500.0,0.00011369,2]
[353297743,1739742666701,-645.4,0.00011369,2]
[353297744,1739742666711,-500.0,0.00011369,2]
[353297745,1739742666719,-1200.0,0.00011369,2]
[353297746,1739742666728,-500.0,0.00011369,2]
[353297747,1739742666739,-500.0,0.00011369,2]
[353297748,1739742666749,-500.0,0.00011369,2]
[353297749,1739742666760,-500.0,0.00011369,2]
[353297750,1739742666770,-500.0,0.00011369,2]
[353297751,1739742666779,-500.0,0.00011369,2]
[353297752,1739742666789,-500.0,0.00011369,2]
[353297753,1739742666799,-500.0,0.00011369,2]
[353297754,1739742666808,-500.0,0.00011369,2]
[353297755,1739742666817,-500.0,0.00011369,2]
[353297756,1739742666827,-500.0,0.00011369,2]
[353297757,1739742666836,-500.0,0.00011369,2]
[353297758,1739742666845,-500.0,0.00011369,2]
[353297759,1739742666854,-500.0,0.00011369,2]
[353297760,1739742666863,-500.0,0.00011369,2]
[353297761,1739742666873,-500.0,0.00011369,2]
[353297762,1739742666882,-500.0,0.00011369,2]
[353297763,1739742666891,-500.0,0.00011369,2]
[353297764,1739742666900,-457.7,0.00011369,2]
[353297765,1739742666910,-500.0,0.00011369,2]
[353297766,1739742666919,-500.0,0.00011369,2]
[353297767,1739742666928,-500.0,0.00011369,2]
[353297768,1739742666937,-547.623635,0.00011369,2]
[353297769,1739742666946,-500.0,0.00011369,2]
[353297770,1739742666956,-500.0,0.00011369,2]
[353297771,1739742666967,-500.0,0.00011369,2]
[353297772,1739742666978,-500.0,0.00011369,2]
[353297773,1739742666987,-500.0,0.00011369,2]
[353297774,1739742666996,-500.0,0.00011369,2]
[353297775,1739742667006,-500.0,0.00011369,2]
[353297776,1739742667016,-500.0,0.00011369,2]
[353297777,1739742667026,-500.0,0.00011369,2]
[353297778,1739742667036,-500.0,0.00011369,2]
[353297779,1739742667045,-500.0,0.00011369,2]
[353297780,1739742667054,-500.0,0.00011369,2]
[353297781,1739742667064,-500.0,0.00011369,2]
[353297782,1739742667074,-500.0,0.00011369,2]
[353297783,1739742667083,-588.54,0.00011369,2]
[353297784,1739742667095,-500.0,0.00011369,2]
[353297785,1739742667105,-527.23,0.00011369,2]
[353297786,1739742667114,-500.0,0.00011369,2]
[353297787,1739742667123,-500.0,0.00011369,2]
[353297788,1739742667133,-500.0,0.00011369,2]
[353297789,1739742667144,-500.0,0.00011369,2]
[353297790,1739742667154,-600.0,0.00011369,2]
[353297791,1739742667163,-500.0,0.00011369,2]
[353297792,1739742667174,-500.0,0.00011369,2]
[353297793,1739742667183,-500.0,0.00011369,2]
[353297794,1739742667192,-773.53,0.00011369,2]
[353297795,1739742667201,-500.0,0.00011369,2]
[353297796,1739742667210,-629.01,0.00011369,2]
[353297797,1739742667220,-509.83471354,0.00011369,2]
[353297798,1739742667230,-500.0,0.00011369,2]
[353297799,1739742667240,-500.0,0.00011369,2]
[353297800,1739742667250,-545.39,0.00011369,2]
[353297801,1739742667260,-581.66,0.00011369,2]
[353297802,1739742667271,-500.0,0.00011369,2]
[353297803,1739742667281,-525.55,0.00011369,2]
[353297804,1739742667291,-500.0,0.00011369,2]
[353297805,1739742667300,-500.0,0.00011369,2]
[353297806,1739742667310,-500.0,0.00011369,2]
[353297807,1739742667320,-500.0,0.00011369,2]
[353297808,1739742667330,-804.84,0.00011369,2]
[353297809,1739742667340,-500.0,0.00011369,2]
[353297810,1739742667350,-500.0,0.00011369,2]
[353297811,1739742667360,-982.12,0.00011369,2]
[353297812,1739742667370,-500.0,0.00011369,2]
[353297813,1739742667380,-500.0,0.00011369,2]
[353297814,1739742667390,-500.0,0.00011369,2]
[353297815,1739742667400,-500.0,0.00011369,2]
[353297816,1739742667411,-500.0,0.00011369,2]
[353297817,1739742667421,-500.0,0.00011369,2]
[353297818,1739742667432,-500.0,0.00011369,2]
[353297819,1739742667442,-565.07,0.00011369,2]
[353297820,1739742667452,-500.0,0.00011369,2]
[353297821,1739742667462,-1208.65,0.00011369,2]
[353297822,1739742667471,-500.0,0.00011369,2]
[353297823,1739742667481,-500.0,0.00011369,2]
[353297824,1739742667491,-500.0,0.00011369,2]
[353297825,1739742667501,-597.45,0.00011369,2]
[353297826,1739742667510,-855.1,0.00011369,2]
[353297827,1739742667521,-500.0,0.00011369,2]
[353297828,1739742667530,-1108.48,0.00011369,2]
[353297829,1739742667540,-570.47,0.00011369,2]
[353297830,1739742667550,-500.0,0.00011369,2]
[353297831,1739742667560,-500.0,0.00011369,2]
[353297832,1739742667569,-1106.27,0.00011369,2]
[353297833,1739742667578,-500.0,0.00011369,2]
[353297834,1739742667588,-500.0,0.00011369,2]
[353297835,1739742667597,-500.0,0.00011369,2]
[353297836,1739742667607,-877.71,0.00011369,2]
[353297837,1739742667617,-500.0,0.00011369,2]
[353297838,1739742667627,-500.0,0.00011369,2]
[353297839,1739742667636,-726.09,0.00011369,2]
[353297840,1739742667646,-541.85,0.00011369,2]
[353297841,1739742667655,-500.0,0.00011369,2]
[353297842,1739742667665,-1071.49,0.00011369,2]
[353297843,1739742667675,-500.0,0.00011369,2]
[353297844,1739742667684,-749.73,0.00011369,2]
[353297845,1739742667694,-767.54,0.00011369,2]
[353297846,1739742667703,-726.53,0.00011369,2]
[353297847,1739742667715,-500.0,0.00011369,2]
[353297848,1739742667725,-500.0,0.00011369,2]
[353297849,1739742667736,-500.0,0.00011369,2]
[353297850,1739742667745,-684.820222,0.00011369,2]
[353297851,1739742667756,-580.47,0.00011369,2]
[353297852,1739742667766,-587.22,0.00011369,2]
[353297853,1739742667775,-500.0,0.00011369,2]
[353297854,1739742667786,-500.0,0.00011369,2]
[353297855,1739742667795,-500.0,0.00011369,2]
[353297856,1739742667806,-500.0,0.00011369,2]
[353297857,1739742667817,-500.0,0.00011369,2]
[353297858,1739742667826,-987.579306,0.00011369,2]
[353297859,1739742667835,-500.0,0.00011369,2]
[353297860,1739742667845,-500.0,0.00011369,2]
[353297861,1739742667855,-500.0,0.00011369,2]
[353297862,1739742667865,-161.281649,0.00011369,2]
[353297863,1739742667875,-500.0,0.00011369,2]
[353297864,1739742667885,-500.0,0.00011369,2]
[353297865,1739742667895,-500.0,0.00011369,2]
[353297866,1739742667905,-500.0,0.00011369,2]
[353297867,1739742667915,-500.0,0.00011369,2]
[353297868,1739742667926,-500.0,0.00011369,2]
[353297869,1739742667935,-532.63,0.00011369,2]
[353297870,1739742667946,-518.7,0.00011369,2]
[353297871,1739742667955,-500.0,0.00011369,2]
[353297872,1739742667965,-500.0,0.00011369,2]
[353297873,1739742667975,-508.32,0.00011369,2]
[353297874,1739742667984,-500.0,0.00011369,2]
[353297875,1739742667994,-500.0,0.00011369,2]
[353297876,1739742668004,-1320.12,0.00011369,2]
[353297877,1739742668013,-500.0,0.00011369,2]
[353297878,1739742668029,-500.0,0.00011369,2]
[353297879,1739742668039,-610.47,0.00011369,2]
[353297880,1739742668049,-500.0,0.00011369,2]
[353297881,1739742668059,-500.0,0.00011369,2]
[353297882,1739742668069,-500.0,0.00011369,2]
[353297883,1739742668079,-603.88,0.00011369,2]
[353297884,1739742668089,-500.0,0.00011369,2]
[353297885,1739742668102,-930.63,0.00011369,2]
[353297886,1739742668112,-836.2,0.00011369,2]
[353297887,1739742668121,-500.0,0.00011369,2]
[353297888,1739742668132,-500.0,0.00011369,2]
[353297889,1739742668162,-712.78,0.00011369,2]
[353297890,1739742668173,-500.0,0.00011369,2]
[353297891,1739742668183,-500.0,0.00011369,2]
[353297892,1739742668193,-500.0,0.00011369,2]
[353297893,1739742668203,-500.0,0.00011369,2]
[353297894,1739742668213,-500.0,0.00011369,2]
[353297895,1739742668223,-500.0,0.00011369,2]
[353297896,1739742668232,-999.98,0.00011369,2]
[353297897,1739742668242,-843.76,0.00011369,2]
[353297898,1739742668251,-500.0,0.00011369,2]
[353297899,1739742668261,-863.25,0.00011369,2]
[353297900,1739742668271,-1040.19,0.00011369,2]
[353297901,1739742668280,-500.0,0.00011369,2]
[353297902,1739742668290,-841.54,0.00011369,2]
[353297903,1739742668299,-500.0,0.00011369,2]
[353297904,1739742668309,-500.0,0.00011369,2]
[353297905,1739742668319,-565.47,0.00011369,2]
[353297906,1739742668328,-854.5,0.00011369,2]
[353297907,1739742668338,-500.0,0.00011369,2]
[353297908,1739742668347,-500.0,0.00011369,2]
[353297909,1739742668357,-170.390533,0.00011369,2]
[353297910,1739742668367,-500.0,0.00011369,2]
[353297911,1739742668377,-839.28,0.00011369,2]
[353297912,1739742668388,-500.0,0.00011369,2]
[353297913,1739742668398,-500.0,0.00011369,2]
[353297914,1739742668407,-500.0,0.00011369,2]
[353297915,1739742668418,-1102.11,0.00011369,2]
[353297916,1739742668428,-500.0,0.00011369,2]
[353297917,1739742668439,-500.0,0.00011369,2]
[353297918,1739742668448,-1120.48,0.00011369,2]
[353297919,1739742668458,-500.0,0.00011369,2]
[353297920,1739742668468,-666.2,0.00011369,2]
[353297921,1739742668478,-500.0,0.00011369,2]
[353297922,1739742668488,-500.0,0.00011369,2]
[353297923,1739742668498,-701.22,0.00011369,2]
[353297924,1739742668508,-500.0,0.00011369,2]
[353297925,1739742668518,-500.0,0.00011369,2]
[353297926,1739742668528,-500.0,0.00011369,2]
[353297927,1739742668538,-500.0,0.00011369,2]
[353297928,1739742668548,-500.0,0.00011369,2]
[353297929,1739742668558,-500.0,0.00011369,2]
[353297930,1739742668568,-500.0,0.00011369,2]
[353297931,1739742668578,-500.0,0.00011369,2]
[353297932,1739742668589,-500.0,0.00011369,2]
[353297933,1739742668599,-169.64509667,0.00011369,2]
[353297934,1739742668610,-730.12,0.00011369,2]
[353297935,1739742668620,-500.0,0.00011369,2]
[353297936,1739742668630,-500.0,0.00011369,2]
[353297937,1739742668640,-500.0,0.00011369,2]
[353297938,1739742668650,-500.0,0.00011369,2]
[353297939,1739742668660,-691.18,0.00011369,2]
[353297940,1739742668670,-959.53,0.00011369,2]
[353297941,1739742668679,-500.0,0.00011369,2]
[353297942,1739742668690,-500.0,0.00011369,2]
[353297943,1739742668700,-1279.74,0.00011369,2]
[353297944,1739742668710,-500.0,0.00011369,2]
[353297945,1739742668721,-500.0,0.00011369,2]
[353297946,1739742668730,-500.0,0.00011369,2]
[353297947,1739742668740,-500.0,0.00011369,2]
[353297948,1739742668750,-1064.34,0.00011369,2]
[353297949,1739742668760,-684.81,0.00011369,2]
[353297950,1739742668770,-500.0,0.00011369,2]
[353297951,1739742668780,-500.0,0.00011369,2]
[353297952,1739742668792,-500.0,0.00011369,2]
[353297953,1739742668803,-948.86,0.00011369,2]
[353297954,1739742668814,-500.0,0.00011369,2]
[353297955,1739742668825,-500.0,0.00011369,2]
[353297956,1739742668836,-1205.36,0.00011369,2]
[353297957,1739742668847,-500.0,0.00011369,2]
[353297958,1739742668857,-2644.03,0.00011369,2]
[353297959,1739742668868,-845.2,0.00011369,2]
[353297960,1739742668878,-500.0,0.00011369,2]
[353297961,1739742668888,-1299.48,0.00011369,2]
[353297962,1739742668898,-500.0,0.00011369,2]
[353297963,1739742668908,-2569.33,0.00011369,2]
[353297964,1739742668919,-500.0,0.00011369,2]
[353297965,1739742668929,-500.0,0.00011369,2]
[353297966,1739742668939,-1215.7,0.00011369,2]
[353297967,1739742668948,-500.0,0.00011369,2]
[353297968,1739742668958,-500.0,0.00011369,2]
[353297969,1739742668967,-597.66,0.00011369,2]
[353297970,1739742668978,-500.0,0.00011369,2]
[353297971,1739742668988,-332.54917436,0.00011369,2]
[353297972,1739742668999,-500.0,0.00011369,2]
[353297973,1739742669009,-500.0,0.00011369,2]
[353297974,1739742669019,-500.0,0.00011369,2]
[353297975,1739742669029,-2101.67,0.00011369,2]
[353297976,1739742669040,-664.4,0.00011369,2]
[353297977,1739742669050,-1077.31,0.00011369,2]
[353297978,1739742669061,-500.0,0.00011369,2]
[353297979,1739742669071,-500.0,0.00011369,2]
[353297980,1739742669080,-935.69,0.00011369,2]
[353297981,1739742669091,-661.83,0.00011369,2]
[353297982,1739742669104,-1106.58,0.00011369,2]
[353297983,1739742669114,-500.0,0.00011369,2]
[353297984,1739742669124,-1835.67,0.00011369,2]
[353297985,1739742669135,-619.8717276,0.00011369,2]
[353297986,1739742669144,-2255.62,0.00011369,2]
[353297987,1739742669154,-730.5,0.00011369,2]
[353297988,1739742669164,-500.0,0.00011369,2]
[353297989,1739742669175,-770.15,0.00011369,2]
[353297990,1739742669186,-1638.39,0.00011369,2]
[353297991,1739742669196,-500.0,0.00011369,2]
[353297992,1739742669206,-578.74,0.00011369,2]
[353297993,1739742669216,-1003.64,0.00011369,2]
[353297994,1739742669227,-500.0,0.00011369,2]
[353297995,1739742669237,-500.0,0.00011369,2]
[353297996,1739742669247,-791.01,0.00011369,2]
[353297997,1739742669257,-1650.35,0.00011369,2]
[353297998,1739742669267,-1438.47,0.00011369,2]
[353297999,1739742669278,-500.0,0.00011369,2]
[353298000,1739742669288,-500.0,0.00011369,2]
[353298001,1739742669298,-500.0,0.00011369,2]
[353298002,1739742669308,-500.0,0.00011369,2]
[353298003,1739742669318,-500.0,0.00011369,2]
[353298004,1739742669328,-1575.58,0.00011369,2]
[353298005,1739742669338,-1536.64,0.00011369,2]
[353298006,1739742669348,-500.0,0.00011369,2]
[353298007,1739742669359,-687.89,0.00011369,2]
[353298008,1739742669370,-1036.62,0.00011369,2]
[353298009,1739742669379,-810.05,0.00011369,2]
[353298010,1739742669389,-500.0,0.00011369,2]
[353298011,1739742669398,-1605.64,0.00011369,2]
[353298012,1739742669408,-500.0,0.00011369,2]
[353298013,1739742669417,-500.0,0.00011369,2]
[353298014,1739742669427,-1465.61,0.00011369,2]
[353298015,1739742669438,-500.0,0.00011369,2]
[353298016,1739742669448,-500.0,0.00011369,2]
[353298017,1739742669458,-1869.66,0.00011369,2]
[353298018,1739742669468,-500.0,0.00011369,2]
[353298019,1739742669479,-2363.97,0.00011369,2]
[353298020,1739742669490,-946.33,0.00011369,2]
[353298021,1739742669501,-898.03,0.00011369,2]
[353298022,1739742669511,-500.0,0.00011369,2]
[353298023,1739742669522,-500.0,0.00011369,2]
[353298024,1739742669533,-790.18,0.00011369,2]
[353298025,1739742669742,-5281.57,0.00011369,2]
[353298026,1739742669752,-500.0,0.00011369,2]
[353298027,1739742669763,-1497.17,0.00011369,2]
[353298028,1739742669772,-500.0,0.00011369,2]
[353298029,1739742669782,-955.64,0.00011369,2]
[353298030,1739742669792,-1351.49,0.00011369,2]
[353298031,1739742669802,-1462.67,0.00011369,2]
[353298032,1739742669812,-522.19,0.00011369,2]
[353298033,1739742669822,-500.0,0.00011369,2]
[353298034,1739742669831,-1393.39,0.00011369,2]
[353298035,1739742669842,-918.71,0.00011369,2]
[353298036,1739742669852,-1445.68,0.00011369,2]
[353298037,1739742669862,-500.0,0.00011369,2]
[353298038,1739742669872,-500.0,0.00011369,2]
[353298039,1739742669882,-1262.94,0.00011369,2]
[353298040,1739742669891,-1096.78,0.00011369,2]
[353298041,1739742669901,-866.87,0.00011369,2]
[353298042,1739742669911,-500.0,0.00011369,2]
[353298043,1739742669920,-921.5,0.00011369,2]
[353298044,1739742669930,-500.0,0.00011369,2]
[353298045,1739742669940,-1703.44,0.00011369,2]
[353298046,1739742669949,-817.33,0.00011369,2]
[353298047,1739742669959,-1765.29,0.00011369,2]
[353298048,1739742669969,-563.98,0.00011369,2]
[353298049,1739742669979,-500.0,0.00011369,2]
[353298050,1739742669989,-500.0,0.00011369,2]
[353298051,1739742669999,-1077.46,0.00011369,2]
[353298052,1739742670009,-500.0,0.00011369,2]
[353298053,1739742670018,-797.83,0.00011369,2]
[353298054,1739742670028,-2045.9,0.00011369,2]
[353298055,1739742670038,-500.0,0.00011369,2]
[353298056,1739742670048,-1027.79,0.00011369,2]
[353298057,1739742670058,-562.48,0.00011369,2]
[353298058,1739742670068,-919.02,0.00011369,2]
[353298059,1739742670077,-2070.46,0.00011369,2]
[353298060,1739742670087,-500.0,0.00011369,2]
[353298061,1739742670100,-500.0,0.00011369,2]
[353298062,1739742670110,-1269.5,0.00011369,2]
[353298063,1739742670120,-1764.9,0.00011369,2]
[353298064,1739742670130,-1920.38,0.00011369,2]
[353298065,1739742670141,-506.51105503,0.00011369,2]
[353298066,1739742670150,-594.15,0.00011369,2]
[353298067,1739742670160,-1514.45,0.00011369,2]
[353298068,1739742670170,-500.0,0.00011369,2]
[353298069,1739742670180,-3942.71,0.00011369,2]
[353298070,1739742670189,-500.0,0.00011369,2]
[353298071,1739742670199,-500.0,0.00011369,2]
[353298072,1739742670208,-500.0,0.00011369,2]
[353298073,1739742670218,-500.0,0.00011369,2]
[353298074,1739742670228,-518.38,0.00011369,2]
[353298075,1739742670239,-2006.59,0.00011369,2]
[353298076,1739742670249,-500.0,0.00011369,2]
[353298077,1739742670258,-739.81,0.00011369,2]
[353298078,1739742670268,-500.0,0.00011369,2]
[353298079,1739742670277,-1277.56,0.00011369,2]
[353298080,1739742670287,-659.07,0.00011369,2]
[353298081,1739742670298,-507.37843252,0.00011369,2]
[353298082,1739742670307,-676.16,0.00011369,2]
[353298083,1739742670317,-500.0,0.00011369,2]
[353298084,1739742670328,-616.55,0.00011369,2]
[353298085,1739742670338,-500.0,0.00011369,2]
[353298086,1739742670347,-500.0,0.00011369,2]
[353298087,1739742670357,-500.0,0.00011369,2]
[353298088,1739742670366,-662.98,0.00011369,2]
[353298089,1739742670376,-681.63,0.00011369,2]
[353298090,1739742670387,-500.0,0.00011369,2]
[353298091,1739742670396,-1928.42,0.00011369,2]
[353298092,1739742670407,-768.53,0.00011369,2]
[353298093,1739742670417,-1472.35,0.00011369,2]
[353298094,1739742670427,-500.0,0.00011369,2]
[353298095,1739742670437,-500.0,0.00011369,2]
[353298096,1739742670447,-1085.08,0.00011369,2]
[353298097,1739742670457,-1097.37,0.00011369,2]
[353298098,1739742670467,-1532.75,0.00011369,2]
[353298099,1739742670476,-1575.69,0.00011369,2]
[353298100,1739742670486,-800.35,0.00011369,2]
[353298101,1739742670496,-2696.32,0.00011369,2]
[353298102,1739742670505,-1998.61,0.00011369,2]
[353298103,1739742670515,-601.4,0.00011369,2]
[353298104,1739742670525,-846.39,0.00011369,2]
[353298105,1739742670535,-500.0,0.00011369,2]
[353298106,1739742670545,-1249.29,0.00011369,2]
[353298107,1739742670555,-500.0,0.00011369,2]
[353298108,1739742670564,-1062.89,0.00011369,2]
[353298109,1739742670574,-500.0,0.00011369,2]
[353298110,1739742670584,-500.0,0.00011369,2]
[353298111,1739742670594,-2010.66,0.00011369,2]
[353298112,1739742670604,-1292.55,0.00011369,2]
[353298113,1739742670614,-500.0,0.00011369,2]
[353298114,1739742670624,-1786.66,0.00011369,2]
[353298115,1739742670634,-500.0,0.00011369,2]
[353298116,1739742670644,-718.28,0.00011369,2]
[353298117,1739742670654,-500.0,0.00011369,2]
[353298118,1739742670663,-500.0,0.00011369,2]
[353298119,1739742670673,-505.9,0.00011369,2]
[353298120,1739742670683,-500.0,0.00011369,2]
[353298121,1739742670693,-2309.43,0.00011369,2]
[353298122,1739742670704,-500.0,0.00011369,2]
[353298123,1739742670714,-500.0,0.00011369,2]
[353298124,1739742670724,-841.82,0.00011369,2]
[353298125,1739742670734,-500.0,0.00011369,2]
[353298126,1739742670744,-1004.9,0.00011369,2]
[353298127,1739742670755,-500.0,0.00011369,2]
[353298128,1739742670765,-1051.25,0.00011369,2]
[353298129,1739742670775,-500.0,0.00011369,2]
[353298130,1739742670785,-1465.9,0.00011369,2]
[353298131,1739742670796,-500.0,0.00011369,2]
[353298132,1739742670806,-1681.66,0.00011369,2]
[353298133,1739742670815,-500.0,0.00011369,2]
[353298134,1739742670824,-918.07,0.00011369,2]
[353298135,1739742670834,-1609.77,0.00011369,2]
[353298136,1739742670843,-500.0,0.00011369,2]
[353298137,1739742670852,-1735.61,0.00011369,2]
[353298138,1739742670862,-500.0,0.00011369,2]
[353298139,1739742670872,-500.0,0.00011369,2]
[353298140,1739742670882,-2197.25,0.00011369,2]
[353298141,1739742670892,-633.84,0.00011369,2]
[353298142,1739742670902,-500.0,0.00011369,2]
[353298143,1739742670912,-500.0,0.00011369,2]
[353298144,1739742670923,-500.0,0.00011369,2]
[353298145,1739742670933,-795.13,0.00011369,2]
[353298146,1739742670943,-513.81,0.00011369,2]
[353298147,1739742670953,-685.8,0.00011369,2]
[353298148,1739742670964,-1539.81,0.00011369,2]
[353298149,1739742670973,-4849.07,0.00011369,2]
[353298150,1739742670983,-500.0,0.00011369,2]
[353298151,1739742670993,-500.0,0.00011369,2]
[353298152,1739742671003,-500.0,0.00011369,2]
[353298153,1739742671015,-500.0,0.00011369,2]
[353298154,1739742671025,-263.04,0.00011369,2]
[353298155,1739742671034,-200.0,0.000114,2]
[353298156,1739742671044,-440.1,0.000114,2]
[353298157,1739742671054,-775.76,0.000114,2]
[353298158,1739742671064,-439.6,0.000114,2]
[353298159,1739742671078,-775.76,0.000114,2]
[353298160,1739742671088,-1017.77578108,0.00011406,2]
[353298161,1739742671101,-1471.49,0.0001145,2]
[353298162,1739742671111,-922.85,0.0001145,2]
[353298163,1739742671122,-1666.95,0.0001145,2]